fUSD/lending_fUSD_20251129
["ID","MTS","AMOUNT","RATE_DAILY","PERIOD"]
[395097592,1764424260497,-151.0,0.00024658,7]
[395097593,1764424260506,-500.0,0.00024658,2]
[395097594,1764424260515,-500.0,0.00024658,2]
[395097595,1764424260525,-500.0,0.00024658,2]
[395097596,1764424260534,-500.0,0.00024658,2]
[395097597,1764424260544,-500.0,0.00024658,2]
[395097598,1764424260553,-500.0,0.00024658,2]
[395097599,1764424260563,-500.0,0.00024658,2]
[395097600,1764424260572,-500.0,0.00024658,2]
[395097601,1764424260581,-500.0,0.00024658,2]
[395097602,1764424260591,-500.0,0.00024658,2]
[395097603,1764424260601,-500.0,0.00024658,2]
[395097604,1764424260610,-500.0,0.00024658,2]
[395097605,1764424260619,-500.0,0.00024658,2]
[395097606,1764424260629,-500.0,0.00024658,2]
[395097607,1764424260638,-500.0,0.00024658,2]
[395097608,1764424260648,-500.0,0.00024658,2]
[395097609,1764424260657,-500.0,0.00024658,2]
[395097610,1764424260667,-500.0,0.00024658,2]
[395097611,1764424260677,-500.0,0.00024658,2]
[395097612,1764424260687,-500.0,0.00024658,2]
[395097613,1764424260699,-500.0,0.00024658,2]
[395097614,1764424260712,-500.0,0.00024658,2]
[395097615,1764424260724,-500.0,0.00024658,2]
[395097616,1764424260735,-500.0,0.00024658,2]
[395097617,1764424260746,-500.0,0.00024658,2]
[395097618,1764424260756,-500.0,0.00024658,2]
[395097619,1764424260767,-500.0,0.00024658,2]
[395097620,1764424260780,-500.0,0.00024658,2]
[395097621,1764424260790,-500.0,0.00024658,2]
[395097622,1764424260800,-500.0,0.00024658,2]
[395097623,1764424260810,-500.0,0.00024658,2]
[395097624,1764424260820,-500.0,0.00024658,2]
[395097625,1764424260830,-500.0,0.00024658,2]
[395097626,1764424260842,-500.0,0.00024658,2]
[395097627,1764424260851,-500.0,0.00024658,2]
[395097628,1764424260861,-500.0,0.00024658,2]
[395097629,1764424260873,-500.0,0.00024658,2]
[395097630,1764424260883,-500.0,0.00024658,2]
[395097631,1764424260894,-500.0,0.00024658,2]
[395097632,1764424260903,-485.73295574,0.00024658,2]
[395097633,1764424260914,-500.0,0.00024658,2]
[395097634,1764424260923,-500.0,0.00024658,2]
[395097635,1764424260932,-500.0,0.00024658,2]
[395097636,1764424260942,-500.0,0.00024658,2]
[395097637,1764424260952,-500.0,0.00024658,2]
[395097638,1764424260966,-500.0,0.00024658,2]
[395097639,1764424260977,-500.0,0.00024658,2]
[395097640,1764424260987,-500.0,0.00024658,2]
[395097641,1764424260999,-500.0,0.00024658,2]
[395097642,1764424261009,-500.0,0.00024658,2]
[395097643,1764424261019,-500.0,0.00024658,2]
[395097644,1764424261029,-500.0,0.00024658,2]
[395097645,1764424261040,-500.0,0.00024658,2]
[395097646,1764424261050,-200.0,0.00024658,2]
[395097647,1764424261060,-500.0,0.00024658,2]
[395097648,1764424261069,-500.0,0.00024658,2]
[395097649,1764424261079,-500.0,0.00024658,2]
[395097650,1764424261088,-500.0,0.00024658,2]
[395097651,1764424261098,-500.0,0.00024658,2]
[395097652,1764424261107,-500.0,0.00024658,2]
[395097653,1764424261117,-500.0,0.00024658,2]
[395097654,1764424261126,-500.0,0.00024658,2]
[395097655,1764424261135,-500.0,0.00024658,2]
[395097656,1764424261145,-500.0,0.00024658,2]
[395097657,1764424261154,-150.0,0.00024673,2]
[395097658,1764424261164,-500.0,0.00024673,2]
[395097659,1764424261174,-1837.76243303,0.000247,2]
[395097660,1764424261183,-2500.0,0.0002474,7]
[395097661,1764424261193,-3000.0,0.0002474,7]
[395097662,1764424261202,-500.0,0.00024771,2]
[395097663,1764424261211,-9961.48845509,0.00024788,2]
[395097664,1764424261220,-500.0,0.00024792,2]
[395097665,1764424261230,-300.0,0.00024799,10]
[395097666,1764424261239,-367555.51433733,0.000248,7]
[395097667,1764424262191,-907.14,0.000248,7]
[395097668,1764424262202,-1586.66,0.000248,7]
[395097669,1764424262287,-352.36822222,0.000248,7]
[395097670,1764424262298,-365.85665625,0.000248,7]
[395097671,1764424262336,-19817.5717624,0.000248,7]
[395097672,1764424263929,-424.34554978,0.00014742,2]
[395097673,1764424263982,-1723.81821892,0.00014742,2]
[395097674,1764424263992,-320.05908437,0.00017767,2]
[395097675,1764424264002,-19730.42329704,0.000248,7]
[395097676,1764424264467,-2848.17505753,0.000248,7]
[395097677,1764424264478,-546.76999972,0.000248,7]
[395097678,1764424264489,-269.86629992,0.000248,7]
[395097679,1764424265027,-1.7e-07,0.000248,7]
[395097680,1764424267243,-836.99523524,0.00016841,2]
[395097681,1764424269862,-258.954044,0.00016841,2]
[395097682,1764424269873,-419.577142,0.00016841,2]
[395097683,1764424270005,-3145.80860967,0.00016841,2]
[395097684,1764424270072,-605.63062048,0.00016841,2]
[395097685,1764424270084,-1238.03434861,0.00016841,2]
[395097686,1764424270094,-320.05908437,0.00018633,2]
[395097687,1764424270104,-151.0,0.000198,2]
[395097688,1764424270113,-1496.28477753,0.00019841,2]
[395097692,1764424411461,527.74,0.00013699,2]
[395097693,1764424419174,904.92,0.00013699,2]
[395097694,1764424534370,-926.60251764,0.00014547,2]
[395097695,1764424534393,-1125.32910829,0.00014567,2]
[395097696,1764424548945,-300.0,0.00014567,2]
[395097697,1764424560843,-262.44,0.00014567,2]
[395097698,1764424572411,-166.66,0.00014567,2]
[395097699,1764424575655,2718.6825123,7.945e-05,2]
[395097700,1764424575678,4151.3425123,7.945e-05,2]
[395097701,1764424575699,845.8377694,7.945e-05,2]
[395097702,1764424577768,-166.66,0.00014567,2]
[395097703,1764424610479,-240.23519614,0.00014494,2]
[395097704,1764424613507,-500.0,0.00014494,2]
[395097705,1764424615435,-525.77771,0.00014494,2]
[395097706,1764424617820,-581.0457758,0.00014494,2]
[395097707,1764424619189,-891.71688568,0.00014494,2]
[395097708,1764424621047,-225.43286318,0.00014494,2]
[395097709,1764424622187,-499.99999983,0.00014494,2]
[395097710,1764424625287,-249.54801596,0.00014494,2]
[395097711,1764424627277,-500.0,0.00014494,2]
[395097712,1764424629584,-156.10674992,0.00014494,2]
[395097713,1764424631365,-165.34815311,0.00014494,2]
[395097714,1764424633698,-500.0,0.00014494,2]
[395097715,1764424636839,-500.0,0.00014494,2]
[395097716,1764424639385,-500.0,0.00014494,2]
[395097717,1764424643529,-166.66,0.00014494,2]
[395097718,1764424645465,-308.23795862,0.00014494,2]
[395097719,1764424647537,-153.7343932,0.00014494,2]
[395097720,1764424649816,-184.56244255,0.00014494,2]
[395097721,1764424651940,-280.15032197,0.00014494,2]
[395097722,1764424653722,-302.0,0.00014438,2]
[395097723,1764424655096,-210.2977053,0.00014438,2]
[395097724,1764424658058,-451.0,0.00014438,2]
[395097725,1764424661120,-500.0,0.00014438,2]
[395097726,1764424663574,-136.7022947,0.00014438,2]
[395097727,1764424663597,-25.2777053,0.00014494,2]
[395097728,1764424686438,-150.0,0.00014344,2]
[395097729,1764424686462,-81.38632683,0.00014421,2]
[395097730,1764424688330,-246.70617127,0.00014421,2]
[395097731,1764424702013,-548.96763811,0.00014276,2]
[395097732,1764424705156,-350.0,0.00014276,2]
[395097733,1764424706476,-1365.28189182,0.00014276,2]
[395097734,1764424709516,-160.98795251,0.00014276,2]
[395097735,1764424711018,-500.0,0.00014276,2]
[395097736,1764424712188,-255.92714014,0.00014276,2]
[395097737,1764424715066,-284.2868803,0.00014276,2]
[395097738,1764424718014,-500.0,0.00014276,2]
[395097739,1764424720064,-500.0,0.00014276,2]
[395097740,1764424722910,-338.02,0.00014276,2]
[395097741,1764424724389,-500.0,0.00014276,2]
[395097742,1764424726320,-302.0,0.00014276,2]
[395097743,1764424728798,-620.3746,0.00014276,2]
[395097744,1764424731342,-528.35293065,0.00014276,2]
[395097745,1764424735739,-302.0,0.00014276,2]
[395097746,1764424736925,-255.50665416,0.00014276,2]
[395097747,1764424738522,-163.73263199,0.00014276,2]
[395097748,1764424740431,-500.0,0.00014276,2]
[395097749,1764424742508,-184.82968071,0.00014276,2]
[395097750,1764424743938,-195.31373055,0.00014276,2]
[395097751,1764424745927,-394.41304336,0.00014276,2]
[395097752,1764424748664,-218.23092986,0.00014276,2]
[395097753,1764424750561,-500.0,0.00014276,2]
[395097754,1764424752913,-283.07274848,0.00014276,2]
[395097755,1764424753993,-278.92725152,0.00014276,2]
[395097756,1764424756494,-268.27429584,0.00014276,2]
[395097757,1764424756516,-231.72570416,0.00014383,2]
[395097758,1764424757876,-18.27429584,0.00014383,2]
[395097759,1764424757898,-144.27012174,0.00014402,2]
[395097760,1764424760625,258.611439,0.00014204,2]
[395097761,1764424762024,-171.01052842,0.00014392,2]
[395097762,1764424776814,-764.71146789,0.0001433,2]
[395097763,1764424809230,-280.44853211,0.0001433,2]
[395097764,1764424809253,-206.0,0.0001433,2]
[395097765,1764424809276,-28.98947158,0.00014392,2]
[395097766,1764424809298,-38.09858622,0.00014402,2]
[395097767,1764424873203,-201.6155017,0.00014402,2]
[395097768,1764424873229,-42.99617432,0.00014402,2]
[395097769,1764424882625,-108.00382568,0.00014402,2]
[395097770,1764424882648,-59.4807077,0.00014402,2]
[395097771,1764424891214,-91.73091858,0.00014402,2]
[395097772,1764424891258,-151.0,0.00014402,2]
[395097773,1764424891281,-12.63129204,0.00014402,2]
[395097774,1764424891303,-16.788819,0.00014494,2]
[395097775,1764424902254,-500.0,0.00014494,2]
[395097776,1764424914106,-38.42570261,0.00014494,2]
[395097777,1764424914129,-153.01384584,0.00014494,2]
[395097778,1764424915530,150.0,0.0001433,2]
[395097779,1764424921698,-81.76894462,0.00014494,2]
[395097780,1764424921720,-151.0,0.00014494,2]
[395097781,1764424921741,-151.0,0.00014494,2]
[395097782,1764424921763,-195.0,0.00014521,2]
[395097783,1764424921784,-34.47777655,0.00014542,2]
[395097784,1764424931219,-280.49203573,0.00014542,2]
[395097785,1764424941262,-500.0,0.00014542,2]
[395097786,1764424951812,-302.0,0.00014542,2]
[395097787,1764424963870,-614.0880157,0.00014541,2]
[395097788,1764424971288,269.2394,7.151e-05,2]
[395097789,1764424971311,3046.8933039,7.151e-05,2]
[395097790,1764424971338,4151.3425123,7.151e-05,2]
[395097791,1764424971361,1277.0747838,7.151e-05,2]
[395097792,1764424971553,195.16868201,7.527e-05,2]
[395097793,1764424971574,4151.3425123,7.527e-05,2]
[395097794,1764424971596,4151.3425123,7.527e-05,2]
[395097795,1764424971618,246.69629339,7.527e-05,2]
[395097796,1764424971764,3904.64621891,7.904e-05,2]
[395097797,1764424971787,4151.3425123,7.904e-05,2]
[395097798,1764424971810,688.56126879,7.904e-05,2]
[395097799,1764424972192,3462.78124351,8.28e-05,2]
[395097800,1764424972215,4151.3425123,8.28e-05,2]
[395097801,1764424977217,-500.0,8.28e-05,2]
[395097802,1764424990817,-500.0,8.28e-05,2]
[395097803,1764425002465,-130.42624419,8.28e-05,2]
[395097804,1764425002487,-169.57375581,8.656e-05,2]
[395097805,1764425012429,-323.2852829,8.656e-05,2]
[395097806,1764425022085,-580.9119843,8.656e-05,2]
[395097813,1764425032514,-174.684007,8.656e-05,2]
[395097814,1764425041738,-274.56713682,8.656e-05,2]
[395097815,1764425049971,-244.07286003,8.656e-05,2]
[395097816,1764425057363,-326.57291601,8.656e-05,2]
[395097817,1764425061420,-605.57208177,8.656e-05,2]
[395097818,1764425065727,-173.31590327,8.656e-05,2]
[395097819,1764425071130,-500.0,8.656e-05,2]
[395097820,1764425075868,-210.0,8.656e-05,2]
[395097821,1764425082895,-300.0,8.656e-05,2]
[395097822,1764425091139,-257.75804325,8.656e-05,2]
[395097823,1764425100799,-308.53943557,8.656e-05,2]
[395097824,1764425108798,-500.0,8.656e-05,2]
[395097825,1764425114437,-235.04893098,8.656e-05,2]
[395097826,1764425120158,-295.79603794,8.28e-05,2]
[395097827,1764425125410,-12.74339763,8.28e-05,2]
[395097828,1764425125434,-186.52172814,8.656e-05,2]
[395097829,1764425129800,-210.80702898,8.656e-05,2]
[395097830,1764425133528,-323.63055821,8.656e-05,2]
[395097831,1764425134440,436.67752509,0.00010959,7]
[395097832,1764425138039,-177.37586955,8.656e-05,2]
[395097833,1764425141215,-11.96282299,8.656e-05,2]
[395097834,1764425141237,-192.77364343,8.656e-05,2]
[395097835,1764425144331,-398.15922067,8.656e-05,2]
[395097836,1764425147015,-302.63318054,8.656e-05,2]
[395097837,1764425148444,-77.09570905,8.656e-05,2]
[395097838,1764425148468,-114.66633233,8.656e-05,2]
[395097839,1764425149912,-193.23212059,8.656e-05,2]
[395097840,1764425154354,-500.04843657,8.656e-05,2]
[395097841,1764425157246,-457.82031977,8.656e-05,2]
[395097842,1764425160362,-197.36681946,8.656e-05,2]
[395097843,1764425165603,-308.23795862,8.28e-05,2]
[395097844,1764425167393,-174.684007,8.28e-05,2]
[395097845,1764425168758,-58.53859881,8.28e-05,2]
[395097846,1764425168784,-294.78311205,8.656e-05,2]
[395097847,1764425172653,-174.684007,8.28e-05,2]
[395097848,1764425172675,-115.315993,8.656e-05,2]
[395097849,1764425174671,-311.33054616,8.656e-05,2]
[395097850,1764425179743,-210.0,8.656e-05,2]
[395097851,1764425183675,-200.0,8.28e-05,2]
[395097852,1764425185580,-268.47315334,8.28e-05,2]
[395097853,1764425190775,-132.85739282,8.28e-05,2]
[395097854,1764425190799,-138.86849688,8.656e-05,2]
[395097855,1764425192074,-173.66389438,8.656e-05,2]
[395097856,1764425194304,-220.86466532,8.656e-05,2]
[395097857,1764425198469,-232.52418623,8.656e-05,2]
[395097858,1764425201618,-306.74428038,8.656e-05,2]
[395097859,1764425205197,-781.32769079,8.656e-05,2]
[395097860,1764425206492,-47.13969936,8.656e-05,2]
[395097861,1764425206514,-300.0,9.032e-05,2]
[395097862,1764425206537,-152.86030064,9.033e-05,2]
[395097863,1764425209516,-274.75535592,9.033e-05,2]
[395097864,1764425212835,-289.19297102,9.033e-05,2]
[395097865,1764425217030,-500.0,9.033e-05,2]
[395097866,1764425218577,-164.37742791,9.033e-05,2]
[395097867,1764425219883,-261.28459711,9.033e-05,2]
[395097868,1764425221372,-250.0,9.033e-05,2]
[395097869,1764425223456,-195.0,9.033e-05,2]
[395097871,1764425228400,-225.69316841,9.033e-05,2]
[395097872,1764425231476,-290.26353375,9.033e-05,2]
[395097873,1764425233894,-524.66017968,9.033e-05,2]
[395097874,1764425236648,-211.90592584,9.033e-05,2]
[395097875,1764425239693,-195.0,9.033e-05,2]
[395097876,1764425242202,-296.69294575,9.033e-05,2]
[395097877,1764425244533,-162.2001373,9.033e-05,2]
[395097878,1764425248820,-182.63912679,8.28e-05,2]
[395097879,1764425250293,-333.31757537,8.28e-05,2]
[395097880,1764425250321,-40.41641799,9.033e-05,2]
[395097881,1764425252449,-226.95462705,9.033e-05,2]
[395097882,1764425254099,-179.49298606,9.033e-05,2]
[395097883,1764425256298,-290.11800551,9.033e-05,2]
[395097884,1764425258863,-262.93369499,9.033e-05,2]
[395097885,1764425260966,-154.64698089,9.033e-05,2]
[395097886,1764425264074,-355.3504846,9.033e-05,2]
[395097887,1764425269265,-376.24202885,9.033e-05,2]
[395097888,1764425271495,-500.0,9.033e-05,2]
[395097889,1764425273610,-576.55415386,9.033e-05,2]
[395097890,1764425275579,-233.83244344,9.033e-05,2]
[395097891,1764425278159,-231.27484438,9.033e-05,2]
[395097892,1764425280356,-361.14526761,9.033e-05,2]
[395097893,1764425281981,-310.59116725,9.033e-05,2]
[395097894,1764425284115,-430.51636054,9.033e-05,2]
[395097895,1764425291226,-178.7340626,9.033e-05,2]
[395097896,1764425292470,-41.85993105,9.033e-05,2]
[395097897,1764425292497,-189.30544577,9.408e-05,2]
[395097898,1764425295346,-231.27484438,9.408e-05,2]
[395097899,1764425297169,-300.0,9.408e-05,2]
[395097900,1764425298880,-276.20924308,9.408e-05,2]
[395097901,1764425302214,-160.63903389,9.408e-05,2]
[395097902,1764425304758,-42.57143288,9.408e-05,2]
[395097903,1764425304780,-122.11561899,9.409e-05,2]
[395097904,1764425306818,-67.22307353,9.409e-05,2]
[395097905,1764425306841,-226.64441095,9.409e-05,2]
[395097906,1764425308666,-210.0,9.409e-05,2]
[395097907,1764425309825,-500.35893617,9.409e-05,2]
[395097908,1764425313916,-198.45165438,9.409e-05,2]
[395097909,1764425316856,-168.35430557,9.409e-05,2]
[395097910,1764425319976,-181.64569443,9.409e-05,2]
[395097911,1764425323747,-500.0,9.409e-05,2]
[395097912,1764425326191,-502.12675571,9.409e-05,2]
[395097913,1764425329842,-500.0,9.409e-05,2]
[395097915,1764425333246,-313.17031929,9.409e-05,2]
[395097916,1764425335953,-301.0,9.409e-05,2]
[395097917,1764425340809,-302.0,9.409e-05,2]
[395097918,1764425342664,-302.0,9.409e-05,2]
[395097919,1764425346186,-337.96386651,9.409e-05,2]
[395097920,1764425349204,-500.0,9.409e-05,2]
[395097921,1764425351706,-166.82,9.409e-05,2]
[395097926,1764425354636,-281.13378765,9.409e-05,2]
[395097927,1764425357147,-191.89281075,9.409e-05,2]
[395097929,1764425359760,-500.0,9.409e-05,2]
[395097930,1764425362490,-201.43310583,9.409e-05,2]
[395097931,1764425365416,-302.0,9.409e-05,2]
[395097932,1764425366729,-233.212539,9.409e-05,2]
[395097933,1764425369160,-426.52691608,9.409e-05,2]
[395097934,1764425371767,-321.92752616,9.409e-05,2]
[395097935,1764425373705,-426.11966787,9.409e-05,2]
[395097936,1764425376987,-375.24886067,9.409e-05,2]
[395097937,1764425379853,-200.0,9.409e-05,2]
[395097938,1764425382762,-74.51884298,9.409e-05,2]
[395097939,1764425382784,-225.48115702,9.522e-05,2]
[395097940,1764425384528,-24.51884298,9.522e-05,2]
[395097941,1764425384551,-183.42291538,9.785e-05,2]
[395097942,1764425388573,-255.14952623,9.785e-05,2]
[395097943,1764425391744,-294.28652202,9.785e-05,2]
[395097945,1764425396210,-284.98947158,9.785e-05,2]
[395097946,1764425400441,-270.15251416,9.785e-05,2]
[395097947,1764425403838,-282.47125149,9.785e-05,2]
[395097948,1764425406975,-273.16779055,9.785e-05,2]
[395097949,1764425409623,-435.78500757,9.785e-05,2]
[395097950,1764425412917,-186.00031382,9.785e-05,2]
[395097951,1764425415414,-300.0,9.785e-05,2]
[395097952,1764425416857,-174.22229,9.785e-05,2]
[395097953,1764425418415,-443.52453199,9.785e-05,2]
[395097954,1764425422261,-169.47029266,9.785e-05,2]
[395097955,1764425423794,-300.00000017,9.785e-05,2]
[395097956,1764425425826,-267.01052842,9.785e-05,2]
[395097957,1764425428805,-262.68399136,9.785e-05,2]
[395098000,1764425431860,-300.92311917,9.785e-05,2]
[395098002,1764425431872,-4061.28993343,9.785e-05,2]
[395098004,1764425431881,-250.0,9.936e-05,2]
[395098006,1764425431891,-1200.0,0.0001006,2]
[395098008,1764425431900,-58.42645225,0.000101,2]
[395098010,1764425431911,-384.09763179,0.000101,2]
[395098011,1764425431920,-300.0,0.00010154,2]
[395098012,1764425431930,-300.0,0.00010154,2]
[395098014,1764425431939,-205.57943248,0.00010155,2]
[395098015,1764425431948,-206.71851289,0.00010155,2]
[395098016,1764425431958,-500.0,0.00010155,2]
[395098017,1764425431967,-150.0,0.00010158,2]
[395098018,1764425431976,-500.0,0.00010159,2]
[395098019,1764425431985,-501.89270124,0.00010159,2]
[395098020,1764425431994,-587.4180923,0.00010159,2]
[395098021,1764425432003,-500.0,0.00010159,2]
[395098022,1764425432012,-500.0,0.00010159,2]
[395098023,1764425432021,-500.0,0.00010159,2]
[395098024,1764425432031,-500.0,0.00010159,2]
[395098025,1764425432041,-500.0,0.00010159,2]
[395098026,1764425432052,-500.0,0.00010159,2]
[395098027,1764425432062,-500.0,0.00010159,2]
[395098028,1764425432071,-405.97108758,0.00010159,2]
[395098029,1764425432080,-500.0,0.00010159,2]
[395098030,1764425432090,-500.0,0.00010159,2]
[395098031,1764425432099,-500.0,0.00010159,2]
[395098032,1764425432108,-500.0,0.00010159,2]
[395098033,1764425432117,-500.0,0.00010159,2]
[395098034,1764425432127,-500.0,0.00010159,2]
[395098035,1764425432136,-500.0,0.00010159,2]
[395098036,1764425432146,-500.0,0.00010159,2]
[395098037,1764425432155,-500.0,0.00010159,2]
[395098038,1764425432164,-500.0,0.00010159,2]
[395098039,1764425432173,-500.0,0.00010159,2]
[395098040,1764425432183,-500.0,0.00010159,2]
[395098041,1764425432193,-500.0,0.00010159,2]
[395098042,1764425432203,-500.0,0.00010159,2]
[395098043,1764425432212,-500.0,0.00010159,2]
[395098044,1764425432221,-500.0,0.00010159,2]
[395098045,1764425432231,-500.0,0.00010159,2]
[395098046,1764425432241,-500.0,0.00010159,2]
[395098047,1764425432250,-500.0,0.00010159,2]
[395098048,1764425432259,-500.0,0.00010159,2]
[395098049,1764425432269,-500.0,0.00010159,2]
[395098050,1764425432278,-500.0,0.00010159,2]
[395098051,1764425432287,-500.0,0.00010159,2]
[395098052,1764425432296,-500.0,0.00010159,2]
[395098053,1764425432306,-500.0,0.00010159,2]
[395098054,1764425432316,-500.0,0.00010159,2]
[395098055,1764425432325,-500.0,0.00010159,2]
[395098056,1764425432334,-500.0,0.00010159,2]
[395098057,1764425432343,-500.0,0.00010159,2]
[395098058,1764425432353,-500.0,0.00010159,2]
[395098059,1764425432362,-500.0,0.00010159,2]
[395098060,1764425432371,-500.0,0.00010159,2]
[395098061,1764425432380,-500.0,0.00010159,2]
[395098062,1764425432390,-500.0,0.00010159,2]
[395098063,1764425432399,-500.0,0.00010159,2]
[395098064,1764425432408,-500.0,0.00010159,2]
[395098065,1764425432417,-238.30159393,0.00010159,2]
[395098066,1764425432521,-261.69840607,0.00010159,2]
[395098067,1764425432536,-15.77159393,0.00010159,2]
[395098068,1764425433512,-226.19762213,0.00010159,2]
[395098069,1764425435564,-258.03078394,0.00010159,2]
[395098070,1764425435596,-60.52707394,0.00010159,2]
[395098071,1764425437616,-439.47292606,0.00010159,2]
[395098072,1764425437627,-500.0,0.00010159,2]
[395098073,1764425437637,-500.0,0.00010159,2]
[395098074,1764425437647,-500.0,0.00010159,2]
[395098075,1764425437656,-500.0,0.00010159,2]
[395098076,1764425437666,-500.0,0.00010159,2]
[395098077,1764425437675,-500.0,0.00010159,2]
[395098078,1764425437685,-500.0,0.00010159,2]
[395098079,1764425437694,-500.0,0.00010159,2]
[395098080,1764425437704,-500.0,0.00010159,2]
[395098081,1764425437713,-602.14590887,0.00010159,2]
[395098083,1764425437722,-500.0,0.00010159,2]
[395098085,1764425437731,-500.0,0.00010159,2]
[395098086,1764425437739,-500.0,0.00010159,2]
[395098087,1764425437748,-500.0,0.00010159,2]
[395098088,1764425437757,-500.0,0.00010159,2]
[395098089,1764425437766,-500.0,0.00010159,2]
[395098091,1764425437774,-500.0,0.00010159,2]
[395098092,1764425437783,-500.0,0.00010159,2]
[395098094,1764425437792,-500.0,0.00010159,2]
[395098096,1764425437801,-500.0,0.00010159,2]
[395098098,1764425437811,-500.0,0.00010159,2]
[395098100,1764425437820,-500.0,0.00010159,2]
[395098102,1764425437829,-500.0,0.00010159,2]
[395098103,1764425437838,-500.0,0.00010159,2]
[395098104,1764425437848,-500.0,0.00010159,2]
[395098105,1764425437858,-500.0,0.00010159,2]
[395098106,1764425437868,-500.0,0.00010159,2]
[395098107,1764425437877,-500.0,0.00010159,2]
[395098108,1764425437886,-500.0,0.00010159,2]
[395098110,1764425437895,-500.0,0.00010159,2]
[395098111,1764425437904,-500.0,0.00010159,2]
[395098112,1764425437913,-404.35455066,0.00010159,2]
[395098113,1764425437924,-500.0,0.00010159,2]
[395098114,1764425437934,-500.0,0.00010159,2]
[395098115,1764425437943,-1113.34,0.00010161,2]
[395098116,1764425437952,-8744.55,0.00010162,2]
[395098117,1764425437961,-1680.0,0.00010349,2]
[395098118,1764425437971,-369.3739271,0.0001035,2]
[395098119,1764425437979,-1113.34,0.00010435,2]
[395098120,1764425437989,-2250.17,0.00010538,2]
[395098121,1764425437999,-8744.55,0.00010538,2]
[395098122,1764425438009,-1113.34,0.00010709,2]
[395098123,1764425438018,-250.0,0.00010764,2]
[395098124,1764425438027,-8744.55,0.00010914,2]
[395098125,1764425438036,-1113.34,0.00010983,2]
[395098126,1764425438046,-1680.0,0.00011066,2]
[395098127,1764425438056,-255.0,0.00011163,2]
[395098128,1764425438065,-420.0,0.00011167,2]
[395098129,1764425438075,-420.0,0.00011167,2]
[395098130,1764425438084,-1113.34,0.00011257,2]
[395098131,1764425438094,-8744.55,0.00011291,2]
[395098132,1764425438103,-1200.0,0.00011384,2]
[395098133,1764425438112,-1113.34,0.00011531,2]
[395098134,1764425438122,-8744.55,0.00011667,2]
[395098135,1764425438131,-200.03822565,0.000117,2]
[395098136,1764425438141,-1113.34,0.00011805,2]
[395098137,1764425438150,-410.0,0.00011897,2]
[395098138,1764425438160,-400.07645131,0.00012,2]
[395098139,1764425438169,-8744.55,0.00012044,2]
[395098140,1764425438178,-1113.36239375,0.00012079,2]
[395098141,1764425438187,-182.63,0.00012085,2]
[395098142,1764425438197,-2351.0,0.00012173,2]
[395098143,1764425438206,-433.0,0.00012271,2]
[395098144,1764425438216,-587.0,0.00012282,2]
[395098145,1764425438229,-587.0,0.00012282,2]
[395098146,1764425438239,-600.11467696,0.000123,2]
[395098147,1764425438248,-176.0,0.00012322,2]
[395098148,1764425438257,-1621.0,0.00012415,2]
[395098149,1764425438267,-8744.55,0.0001242,2]
[395098150,1764425438276,-250.0,0.00012432,2]
[395098151,1764425438285,-1425.0,0.0001244,2]
[395098152,1764425438295,-485.79,0.00012517,2]
[395098153,1764425438304,-166.66,0.00012527,2]
[395098154,1764425438314,-800.15290262,0.000126,2]
[395098155,1764425438324,-8744.55,0.00012796,2]
[395098156,1764425438334,-201.88,0.00012833,2]
[395098157,1764425438344,-1000.19112827,0.000129,2]
[395098158,1764425438353,-166.66,0.00012941,2]
[395098159,1764425438362,-8744.55,0.00013173,2]
[395098160,1764425438371,-166.66,0.00013354,2]
[395098161,1764425438380,-3292.0,0.0001339,2]
[395098162,1764425438390,-10082.33670862,0.00013449,2]
[395098163,1764425438399,-736.0,0.00013479,2]
[395098164,1764425438409,-823.0,0.00013508,2]
[395098165,1764425438418,-823.0,0.00013508,2]